Cogmind - Beta 11.1 @@@ ROGUE MODE // 2022.06.03 @ 14:22:54 Player: Demise Result: Destroyed by Y-64 Sentinel with Wave Gun Performance ------------- Evolutions (5) 2500 Regions Visited (20) 4000 Robots Destroyed (221) 1105 Value Destroyed (6600) 6600 Prototype IDs (48) 960 Alien Tech Used (0) 0 Bonus (-1063) -1063 TOTAL SCORE: 14102 Bonus ------- High Alert Combat Kills 639 Follower Combat Kills 1384 Entered Garrisons 200 Met Imprinter 300 Was Imprinted 300 Friendly Fire -3886 Cogmind --------- Core Integrity 0/1000 Matter 300/300 Energy 350/350 System Corruption 9% Temperature Cool (9) Movement Hovering (93) Ox1 Location -5/Factory Parts ------- > --- POWER (1) -------- Improved Quantum Reactor > --- PROPULSION (4) --- Experimental Gyrokinetic Inverter Experimental Gyrokinetic Inverter Cooled Linear Gravjet Cooled Linear Gravjet > --- UTILITY (10) ----- Coolant Network High-capacity Storage Unit Enhanced Optical Array Advanced Sensor Array Improved Signal Interpreter Transport Network Coupler Improved Melee Analysis Suite Hacking Suite Improved System Shield > --- WEAPON (2) ------- (None) > --- INVENTORY (20) --- Micro Fission Core Experimental Gyrokinetic Inverter Experimental Gyrokinetic Inverter Improved Energy Well (115) Advanced Matter Compressor (61) Advanced Gravity Neutralizer Tactical Coordination Suite Precision Energy Filter Advanced Kinecellerator Hardened Light Armor Plating Improved Focal Shield Long-range Tractor Beam Improved Recalibrator Drone Bay (2/2) Compact HERF Cannon Heavy Plasma Cannon Compact Linear Accelerator Mini Smartbomb Launcher Self-destruct Interrupter (50) Peak State ------------ > --- POWER ------------ Micro Fission Core > --- PROPULSION ------- Experimental Gyrokinetic Inverter Experimental Gyrokinetic Inverter Cooled Linear Gravjet Cooled Linear Gravjet > --- UTILITY ---------- Advanced Cooling System Coolant Network High-capacity Storage Unit Enhanced Optical Array Improved Signal Interpreter Transport Network Coupler Improved Melee Analysis Suite Hacking Suite Improved System Shield > --- WEAPON ----------- Compact Linear Accelerator > --- INVENTORY -------- Micro Fission Core Improved Quantum Reactor Linear Gravjet Experimental Gyrokinetic Inverter Improved Energy Well Advanced Matter Compressor Advanced Sensor Array Tactical Coordination Suite Precision Energy Filter Advanced Kinecellerator Hardened Light Armor Plating Hardened Medium Armor Plating Improved Focal Shield Long-range Tractor Beam Improved Recalibrator Drone Bay Compact HERF Cannon Heavy Plasma Cannon Mini Smartbomb Launcher Self-destruct Interrupter [Rating: 114] Favorites ----------- Power Cooled Deuterium Engine Engine Cooled Deuterium Engine Power Core Micro Nuclear Core Reactor Micro Antimatter Reactor Propulsion Wheel Treads Improved Treads Wheel Wheel Hover Unit Combat Gravmag System Flight Unit Cooled VTOL Module Utility Improved Signal Interpreter Device Advanced Weight Redist. System Storage High-capacity Storage Unit Processor Improved Signal Interpreter Hackware Hacking Suite Protection Hardened Medium Armor Plating Weapon Powered Hammer Energy Gun Variable Charge Gun Energy Cannon Advanced Plasma Cannon Ballistic Gun Assault Rifle Ballistic Cannon Compact Linear Accelerator Launcher Proton Missile Launcher Special Weapon Plasma Cutter Impact Weapon Powered Hammer Slashing Weapon Blade Saw Piercing Weapon Spear Special Melee Weapon Datajack Build | -11 -10 -10 -10 -9 -8 -7 -7 -7 -7 -7 -7 -6 -6 -6 -6 -5 -5 -5 -5 -5 ------- Run | Scr Mat Min Exi Min Mat Fac Was Fac Low Low Zio Pro Fac Was Fac Fac Was Fac Gar Fac Slots Evolved 10 | . . . . . 4 2 . . . . . . 2 . . 2 . . . . Power . | . . . . . . . . . . . . . . . . . . . . . Propulsion 2 | . . . . . . . . . . . . . . . . 2 . . . . Utility 8 | . . . . . 4 2 . . . . . . 2 . . . . . . . Weapon . | . . . . . . . . . . . . . . . . . . . . . Parts Attached 422 | 7 10 5 4 8 59 57 39 19 9 7 7 8 38 12 16 27 4 19 33 34 Power 33 | 1 . 1 . . 5 1 2 1 . . . 1 4 1 1 1 1 3 2 8 Engine 9 | 1 . 1 . . 3 1 1 . . . . 1 1 . . . . . . . Core 19 | . . . . . 2 . . 1 . . . . 3 1 1 1 . 2 2 6 Reactor 5 | . . . . . . . 1 . . . . . . . . . 1 1 . 2 Propulsion 65 | 2 1 3 . . 14 4 2 3 2 1 . . 3 1 1 11 . 2 6 9 Treads 9 | . . . . . 4 . . . 1 . . . . . 1 . . . 3 . Leg . | . . . . . . . . . . . . . . . . . . . . . Wheel 30 | 2 1 3 . . 10 4 2 2 1 1 . . 3 1 . . . . . . Hover 25 | . . . . . . . . . . . . . . . . 11 . 2 3 9 Flight 1 | . . . . . . . . 1 . . . . . . . . . . . . Utility 178 | 2 5 1 . 6 25 40 15 9 3 . 2 5 18 8 6 7 3 8 3 12 Device 89 | 1 1 1 . 6 9 23 5 4 2 . 1 3 9 4 . 5 2 5 . 8 Storage 12 | 1 3 . . . 1 . 1 1 . . . . . 2 1 1 . . 1 . Processor 17 | . 1 . . . 5 . . 1 . . . 1 3 . 1 1 . 2 . 2 Hackware 9 | . . . . . . 3 1 . . . . . . . 4 . 1 . . . Protection 51 | . . . . . 10 14 8 3 1 . 1 1 6 2 . . . 1 2 2 Artifact . | . . . . . . . . . . . . . . . . . . . . . Weapon 146 | 2 4 . 4 2 15 12 20 6 4 6 5 2 13 2 8 8 . 6 22 5 Energy Gun 6 | . . . . . . 1 1 1 . . 1 . . . . . . 1 1 . Energy Cannon 6 | . . . . . . . 1 . . . . . . . . 1 . 1 3 . Ballistic Gun 42 | 2 3 . 2 2 14 4 5 4 . . . . 2 . . 1 . . 2 1 Ballistic Cannon 1 | . . . . . . . . . . . . . . . . . . . . 1 Launcher 31 | . 1 . . . 1 1 12 1 1 1 . 1 1 . . . . 2 6 3 Special Weapon 8 | . . . . . . . . . 1 1 1 . . . 3 . . . 2 . Impact Weapon 15 | . . . 1 . . 1 1 . 1 2 2 1 4 . 2 . . . . . Slashing Weapon 35 | . . . . . . 5 . . . 2 1 . 6 2 3 6 . 2 8 . Piercing Weapon 1 | . . . . . . . . . 1 . . . . . . . . . . . Special Melee Weapon 1 | . . . 1 . . . . . . . . . . . . . . . . . Unidentified Prototypes 22 | . . . . 1 2 . 1 3 . 1 1 . . 4 . 1 . 2 . 6 Corrupted Parts 1 | . . . . . . . . 1 . . . . . . . . . . . . System Corruption 8 | . . . . . . . . 8 . . . . . . . . . . . . Parts Lost 67 | . . 1 . . 8 3 10 2 . . . . 5 . 13 4 . 2 16 3 Power 11 | . . . . . . . 2 1 . . . . 1 . 2 . . 2 1 2 Propulsion 22 | . . 1 . . 6 . 1 1 . . . . 1 . 3 1 . . 7 1 Utility 23 | . . . . . 2 2 5 . . . . . 3 . 6 2 . . 3 . Weapon 11 | . . . . . . 1 2 . . . . . . . 2 1 . . 5 . Highest Loss Streak 9 | . . 1 . . 3 1 7 2 . . . . 2 . 5 2 . 1 9 2 To Critical Strikes 1 | . . . . . . . 1 . . . . . . . . . . . . . Average Slot Usage (%) 92 | . 100 100 100 99 96 93 71 99 100 99 98 99 96 100 89 74 80 92 64 76 Engine 4 | . 14 14 14 14 8 7 1 . . . . 1 2 1 . . . . . . Core 2 | . . . . . . . . . 7 7 7 5 3 4 5 3 . 1 . 4 Wheel 11 | . 28 28 28 28 15 8 9 15 9 7 15 15 13 13 8 . . . . . Hover 2 | . . . . . . . . . . . . . . . . 17 23 23 8 15 Device 10 | . 9 13 14 13 6 7 13 20 14 15 15 15 13 19 14 6 11 11 2 1 Storage 8 | . 18 14 14 14 9 7 1 6 7 7 7 7 6 6 9 6 5 5 10 9 Processor 14 | . . . . . 22 15 9 9 15 15 15 15 19 23 17 10 5 15 17 24 Hackware 8 | . . . . . . 20 7 7 7 7 7 7 4 . 4 19 21 23 11 11 Protection 9 | . . . . . 14 8 15 15 15 15 13 14 17 15 13 . . . . . Ballistic Gun 7 | . 28 28 3 28 17 7 . 11 1 . . . . . . . . . . . Impact Weapon 1 | . . . 12 . . 1 . . 4 6 7 7 4 . 4 . . . . . Slashing Weapon 3 | . . . . . . 5 . . . 3 7 7 8 13 7 4 5 4 1 . Naked Turns . | . . . . . . . . . . . . . . . . . . . . . Heaviest Build 112 | 15 89 89 50 50 105 112 109 91 70 64 64 68 77 73 74 66 68 68 69 60 Greatest Support 69 | 26 26 26 20 20 23 28 33 33 37 31 31 31 33 33 33 59 59 59 69 69 Greatest Overweight (x) 17 | . 3 3 2 2 10 5 3 3 2 3 2 2 3 2 5 4 1 4 17 2 Average Overweight (x) 1 | . 1 1 2 2 4 3 . 2 1 2 1 2 1 1 1 . . . 2 . Largest Inventory Capacity 25 | 8 20 20 20 20 25 25 25 20 20 20 20 20 20 20 20 20 20 20 20 20 Average Capacity 20 | 7 19 20 20 20 22 25 9 19 20 20 20 20 20 20 20 20 20 20 20 20 Most Carried 25 | 8 20 20 20 20 25 25 25 20 20 20 20 20 20 20 20 20 20 20 20 20 Average Carried 19 | 3 15 19 19 19 22 24 7 15 20 19 19 19 19 19 18 16 19 19 17 18 Final Capacity 25 | 8 20 20 20 20 25 25 5 20 20 20 20 20 20 20 20 20 20 20 20 20 Final Carried 25 | 8 20 20 20 20 25 24 5 20 20 20 20 20 20 20 12 20 20 20 17 19 Class Distribution -------------------- 34% | Mutant 26% | Scavenger-Mutant 16% | Hacker-Mutant 9% | Hacker-Assassin 3% | Hacker-Skirmisher Dominant Class ---------------- Mutant | -10/Materials Commander-Mutant | -10/Mines Scavenger-Mutant | -10/Exiles Scavenger-Mutant | -9/Mines Scavenger-Mutant | -8/Materials Hacker-Assassin | -7/Factory Mutant | -7/Waste Scavenger-Mutant | -7/Factory Mutant | -7/Lower Caves Mutant | -7/Lower Caves Mutant | -7/Zion Mutant | -6/Proximity Caves Scavenger-Mutant | -6/Factory Scavenger-Mutant | -6/Waste Scavenger-Mutant | -6/Factory Hacker-Mutant | -5/Factory Hacker-Mutant | -5/Waste Hacker-Scout | -5/Factory Hacker-Mutant | -5/Garrison Hacker-Mutant | -5/Factory Resources | -11 -10 -10 -10 -9 -8 -7 -7 -7 -7 -7 -7 -6 -6 -6 -6 -5 -5 -5 -5 -5 ----------- Run | Scr Mat Min Exi Min Mat Fac Was Fac Low Low Zio Pro Fac Was Fac Fac Was Fac Gar Fac Matter Collected 8799 | 366 374 144 65 169 1553 891 825 375 383 165 17 140 398 520 148 241 54 240 769 962 Remotely 601 | . . . . . . . . . . . . . . . . . . . . 601 Salvage Created 10291 | 174 524 242 . 99 2087 1374 1470 366 395 84 . 71 734 690 252 225 265 446 563 230 Parts 434 | 18 42 10 . 9 142 47 23 16 10 6 . 1 20 7 9 10 2 26 22 14 Haulers Intercepted 12 | . 2 . . . 5 2 . . . . . . 2 . . . . . . 1 Recyclers Shooed 6 | 1 1 2 . . . 1 . . . . . . . . . . . 1 . . Parts Field Recycled . | . . . . . . . . . . . . . . . . . . . . . Retrieved Matter . | . . . . . . . . . . . . . . . . . . . . . Parts Self-Destructed 14 | . . . . . . . . . 4 4 . 6 . . . . . . . . Prevented 1 | . . . . . . . . . . . . 1 . . . . . . . . Kills | -11 -10 -10 -10 -9 -8 -7 -7 -7 -7 -7 -7 -6 -6 -6 -6 -5 -5 -5 -5 -5 ------- Run | Scr Mat Min Exi Min Mat Fac Was Fac Low Low Zio Pro Fac Was Fac Fac Was Fac Gar Fac Combat Hostiles Destroyed 135 | . 12 1 . 4 37 15 6 4 5 3 . . 8 . 5 2 . 5 17 11 Melee 22 | . . . . . . 5 . . . . . . 5 . 1 2 . 2 7 . Guns 67 | . 12 1 . 4 36 8 1 4 . . . . . . . . . . . 1 AOE 35 | . . . . . 1 1 5 . 5 3 . . . . . . . 3 7 10 Classes Destroyed 24 | 3 6 . . . 3 1 2 1 1 1 . 1 . . 1 . . . 1 3 Worker 14 | 2 . 2 . 1 5 3 . . . . . . 1 . . . . . . . Builder 9 | . 3 . . . 3 . . . . . . . 1 . . . . 1 . 1 Tunneler 7 | 5 . 1 . . . 1 . . . . . . . . . . . . . . Hauler 12 | . 2 . . . 5 2 . . . . . . 2 . . . . . . 1 Recycler 9 | 1 . 2 . . . 5 . . . . . . . . . . . 1 . . Minesweeper 1 | . . . . . . . . . . . . 1 . . . . . . . . Mechanic 2 | . . . . . . . . . . . . . . . 1 . . . . 1 Operator 7 | . 1 . . . 2 1 . . . . . . 1 . 1 . . . . 1 Watcher 13 | . 3 . . . 5 . . 1 . . . . 1 . . . . 3 . . Swarmer 39 | . 8 . . 3 11 . . . 3 3 . . . . . . . 4 4 3 Saboteur 1 | . . . . . . . . . . . . . . . . . . . . 1 Grunt 31 | . 4 1 . 1 13 6 . . 1 . . . 2 . 1 . . . 2 . Duelist 3 | . . . . . 1 . . . . . . . 1 . . . . . 1 . Protector 1 | . . . . . . . . . . . . . . . . . . . . 1 Sentry 24 | . . . . . 10 3 . 1 1 . . . 3 . . . . . 6 . Specialist 1 | . . . . . . . . . . . . . . . . . . . . 1 Hunter 13 | . . . . . 2 2 . 1 . . . . 1 . 2 . . . 1 4 Programmer 14 | . . . . . . 4 . 2 . . . . 1 . 1 2 . 1 2 1 Heavy 1 | . . . . . . . . . . . . . . . 1 . . . . . Behemoth 1 | . . . . . . . . . . . . . . . . . . . 1 . Compactor 6 | . . . . . . . 6 . . . . . . . . . . . . . Z-Courier 1 | . . . . . . . . . . . . . . . . 1 . . . . Decomposer 1 | . . . . . . . . . 1 . . . . . . . . . . . Packrat 2 | . . . . . . . . . 2 . . . . . . . . . . . Samaritan 2 | . . . . . . . . . 2 . . . . . . . . . . . Tinkerer 1 | . . . . . . . . . . 1 . . . . . . . . . . Surgeon 1 | . . . . . . . 1 . . . . . . . . . . . . . Wasp 3 | . . . . . . . 1 2 . . . . . . . . . . . . Thug 5 | . . . . . . . 4 1 . . . . . . . . . . . . Butcher 2 | . . . . . . . 1 1 . . . . . . . . . . . . Martyr 1 | . . . . . . . . 1 . . . . . . . . . . . . Best Kill Streak 11 | 4 4 2 . 2 8 3 1 2 5 3 . 1 2 . 1 1 . 5 4 11 Combat Bots Only 8 | . 3 1 . 2 8 3 1 2 5 3 . . 2 . 1 1 . 4 4 8 Max Kills in Single Turn 3 | 1 2 1 . 1 2 1 2 1 2 2 . 1 1 . 1 1 . 2 2 3 Gunslinging 1 | . 1 . . . . . . . . . . . . . . . . . . . Exploded 2 | . . . . . 1 1 1 . 2 2 . . . . . . . 2 2 2 Melee 1 | . . . . . . 1 . . . . . . 1 . 1 1 . 1 1 . Uniques/NPCs Destroyed . | . . . . . . . . . . . . . . . . . . . . . Combat | -11 -10 -10 -10 -9 -8 -7 -7 -7 -7 -7 -7 -6 -6 -6 -6 -5 -5 -5 -5 -5 -------- Run | Scr Mat Min Exi Min Mat Fac Was Fac Low Low Zio Pro Fac Was Fac Fac Was Fac Gar Fac Damage Taken 11873 | . 326 70 . 102 1898 1454 562 654 163 49 . 66 1441 . 1570 807 . 200 2052 459 Core 2697 | . 85 10 . 27 338 231 209 16 30 . . 26 277 . 425 224 . 38 653 108 Absorbed by Shields 15 | . . . . . . . . . . . . . . . . . . . 15 . Redirected to Shielding 466 | . . . . . 54 151 2 31 17 9 . 17 99 . 86 . . . . . Regen/Repaired (Parts) 540 | . 85 . . . 176 223 . . . . . . . . . . . . . 56 Core Remaining (%) 46 | 100 . . . 51 38 . . . . . . 26 . . 17 . . . . . Volleys Fired 476 | 16 47 17 . 11 166 55 40 31 6 6 . . 3 . 6 . . 5 50 17 Largest 2 | 2 2 2 . 2 2 2 2 2 1 1 . . 2 . 1 . . 1 1 1 Hottest 98 | 40 40 40 . 40 47 75 78 56 39 39 . . 56 . 5 . . 98 98 80 Shots Fired 822 | 32 94 34 . 22 331 105 46 61 6 6 . . 6 . 6 . . 6 50 17 Gun 708 | 32 93 34 . 22 329 104 12 61 1 . . . 6 . . . . 1 8 5 Cannon 19 | . . . . . . . . . . . . . . . . . . 3 15 1 Launcher 76 | . 1 . . . 2 1 34 . 4 2 . . . . . . . 2 19 11 Special 19 | . . . . . . . . . 1 4 . . . . 6 . . . 8 . Kinetic 701 | 32 93 34 . 22 329 100 11 61 1 . . . 6 . . . . . 6 6 Thermal 25 | . . . . . . 4 1 . 1 . . . . . . . . 4 15 . Explosive 64 | . 1 . . . . . 25 . 4 2 . . . . . . . 2 19 11 Electromagnetic 14 | . . . . . 2 1 9 . . . . . . . . . . . 2 . Robot Hit Streak 32 | 5 7 6 . 5 22 21 32 11 3 2 . . 10 . 5 . . 2 5 9 Robot Miss Streak 10 | 4 5 2 . 2 3 2 2 10 1 2 . . 1 . 1 . . 2 1 2 Penetration Max . | . . . . . . . . . . . . . . . . . . . . . Secondary Targets 3 | . 1 . . . 2 . . . . . . . . . . . . . . . Max Gunslinging Chain 1 | . 1 . . . 1 . . . . . . . . . . . . . . . Shots Hit Robots 798 | 18 56 21 4 13 260 111 35 55 11 5 . 5 66 23 24 23 12 15 35 6 Core Hits 432 | 9 28 11 . 6 108 37 44 55 11 5 . 1 24 5 3 6 1 8 32 38 Critical Kills 2 | . . . . . 2 . . . . . . . . . . . . . . . Critical Parts Destroyed 16 | . 1 1 . . 2 1 1 . . . . 1 6 . 2 . . . 1 . Critical Strikes 42 | . 1 1 . . 4 5 1 . 1 . . 1 15 1 3 3 . . 6 . Destroy 7 | . 1 1 . . 4 . . . . . . . . . . . . . 1 . Smash 11 | . . . . . . 1 1 . . . . 1 6 . 2 . . . . . Sever 23 | . . . . . . 4 . . . . . . 9 1 1 3 . . 5 . Impale 1 | . . . . . . . . . 1 . . . . . . . . . . . Melee Attacks 359 | . . . 4 . . 66 2 . 18 6 4 13 85 25 34 31 12 30 29 . Impact 108 | . . . . . . 13 2 . 7 5 3 11 42 . 25 . . . . . Slashing 236 | . . . . . . 53 . . . 1 1 2 43 25 9 31 12 30 29 . Piercing 11 | . . . . . . . . . 11 . . . . . . . . . . . Sneak Attacks 52 | . . . 4 . . 11 . . 7 . . 4 8 . 3 11 . 4 . . Combat Hostiles 3 | . . . . . . . . . . . . 2 1 . . . . . . . Follow-up Attacks 16 | . . . . . . 1 . . . . . . 10 3 . 2 . . . . Damage Inflicted 27333 | 227 833 337 . 169 3913 2931 4574 901 865 345 . 438 2240 764 1008 1014 483 1174 2444 2673 Guns 8012 | 227 790 318 . 169 3809 1281 153 901 . . . . 152 . . . . 16 112 84 Cannons 74 | . . . . . . . . . . . . . . . . . . . 32 42 Explosions 9588 | . 43 . . . 104 52 4315 . 388 232 . . . . . . . 427 1482 2545 Melee 9627 | . . . . . . 1598 106 . 466 113 . 438 2088 764 1008 1014 483 731 818 . Ramming 21 | . . 19 . . . . . . . . . . . . . . . . . 2 Kinetic 8012 | 227 790 318 . 169 3809 1281 127 901 . . . . 152 . . . . . 112 126 Thermal 85 | . . . . . . . 26 . 11 . . . . . . . . 16 32 . Explosive 8275 | . 43 . . . . . 3158 . 388 232 . . . . . . . 427 1482 2545 Electromagnetic 1313 | . . . . . 104 52 1157 . . . . . . . . . . . . . Impact 3054 | . . . . . . 614 106 . . 113 . 438 1056 . 727 . . . . . Slashing 6107 | . . . . . . 984 . . . . . . 1032 764 281 1014 483 731 818 . Piercing 466 | . . . . . . . . . 466 . . . . . . . . . . . Highest Corruption 17 | . 1 1 1 1 5 3 3 17 17 17 17 . 2 . 2 1 1 2 4 9 Average Corruption 5 | . 1 1 1 1 5 1 3 11 17 17 17 . 1 . 1 1 1 1 3 7 Corruption Purged 8 | . . . . 1 . 4 . . . . . . 3 . . . . . . . Corruption Blocked 16 | . . . . . . . . . . . . . . . . . . . . 16 Effects 227 | . 4 7 3 3 18 16 14 30 40 24 6 . 4 . 5 . 2 5 25 21 Message Errors 59 | . 1 3 1 . 2 3 7 6 14 9 2 . 2 . 1 . 1 1 1 5 Matter Fused 54 | . 1 2 1 2 6 6 2 8 11 2 . . 1 . 1 . . . 7 4 Heat Flow Errors 23 | . . 1 . . 4 1 2 2 3 2 . . 1 . . . . . 5 2 Energy Discharges 29 | . . 1 1 1 2 2 1 6 5 1 1 . . . . . . . 3 5 Parts Rejected 3 | . . . . . . . 1 . . . . . . . 1 . . . . 1 Data Loss (minor) 32 | . 1 . . . 2 2 1 3 2 5 3 . . . 2 . 1 2 5 3 Data Loss (major) 11 | . . . . . . 1 . 1 2 3 . . . . . . . 1 2 1 Misfires 4 | . 1 . . . 1 . . . 1 . . . . . . . . 1 . . Alerts 9 | . . . . . 1 . . 3 1 2 . . . . . . . . 2 . Weapon Failures 3 | . . . . . . 1 . 1 1 . . . . . . . . . . . Overload Shots . | . . . . . . . . . . . . . . . . . . . . . Overflow Damage 1966 | . . . . . . 365 81 . 89 . . 238 494 63 201 . . 236 103 96 Projectiles 8 | . . . . . . . . . . . . . . . 6 . . . . 2 Explosions 201 | . . . . . . . 23 . 15 . . . . . . . . 17 52 94 Melee 1757 | . . . . . . 365 58 . 74 . . 238 494 63 195 . . 219 51 . Knockbacks 14 | . . . . . . 2 . . . . . 2 4 . 6 . . . . . Impact 12 | . . . . . . 2 . . . . . 2 3 . 5 . . . . . Kinetic . | . . . . . . . . . . . . . . . . . . . . . Secondary 2 | . . . . . . . . . . . . . 1 . 1 . . . . . Self-Inflicted Damage 154 | . . 9 . . . . 78 . . . . . . . . . . . 67 . Shots 5 | . . . . . . . 3 . . . . . . . . . . . 2 . Rammed 2 | . . 1 . . . . . . . . . . . . . . . . . 1 Targets Rammed 2 | . . 1 . . . . . . . . . . . . . . . . . 1 Kicked . | . . . . . . . . . . . . . . . . . . . . . Crushed . | . . . . . . . . . . . . . . . . . . . . . Highest Temperature 304 | . . 256 . 2 248 179 86 99 231 109 . . 250 . . 1 . 144 297 304 Average Temperature 72 | . . 120 . 1 46 49 19 26 85 56 . . 117 . . 1 . 53 99 109 Received Heat Transfer 2382 | . 54 30 . 12 783 387 . 78 24 . . 12 357 . 114 99 . . 342 90 Effects 2 | . . . . . . . . . . . . . . . . . . . 2 . Interference 2 | . . . . . . . . . . . . . . . . . . . 2 . Siege Activations . | . . . . . . . . . . . . . . . . . . . . . Robots Corrupted 3 | . . . . . . . 3 . . . . . . . . . . . . . Combat Hostiles . | . . . . . . . . . . . . . . . . . . . . . Parts Fried 30 | . . . . . 2 6 4 2 . . . 2 10 . 4 . . . . . Impact Corruptions 45 | . . . . . . 12 1 . . . . 10 14 . 8 . . . . . Robots Melted . | . . . . . . . . . . . . . . . . . . . . . Combat Hostiles . | . . . . . . . . . . . . . . . . . . . . . Parts Melted 1 | . . . . . . 1 . . . . . . . . . . . . . . Heat Transferred 149 | . . . . . . . 37 . 37 . . . . . . . . 25 50 . Parts Sabotaged . | . . . . . . . . . . . . . . . . . . . . . Parts Stolen . | . . . . . . . . . . . . . . . . . . . . . Parts Stripped . | . . . . . . . . . . . . . . . . . . . . . Power Chain Reactions . | . . . . . . . . . . . . . . . . . . . . . Missiles Intercepted . | . . . . . . . . . . . . . . . . . . . . . Alert | -11 -10 -10 -10 -9 -8 -7 -7 -7 -7 -7 -7 -6 -6 -6 -6 -5 -5 -5 -5 -5 ------- Run | Scr Mat Min Exi Min Mat Fac Was Fac Low Low Zio Pro Fac Was Fac Fac Was Fac Gar Fac Peak Influence 1270 | 40 385 145 . 75 752 342 70 172 . . . . 431 67 126 239 53 268 746 1270 Initial 391 | . 26 91 . . 29 306 32 . . . . . 2 67 . 37 38 37 111 391 Average 200 | 18 209 67 . 41 409 105 17 76 . . . . 159 51 32 63 51 104 413 646 Maximum Alert Level 4 | . 1 . . . 3 1 . . . . . . 2 . . 1 . 1 3 4 Low Security (%) 66 | 100 49 100 . 100 20 84 100 100 . . . . 73 100 100 97 100 87 12 . Level 1 20 | . 50 . . . 38 15 . . . . . . 25 . . 2 . 12 28 56 Level 2 8 | . . . . . 23 . . . . . . . . . . . . . 53 5 Level 3 4 | . . . . . 17 . . . . . . . . . . . . . 6 16 Level 4 1 | . . . . . . . . . . . . . . . . . . . . 20 Level 5 . | . . . . . . . . . . . . . . . . . . . . . High Security . | . . . . . . . . . . . . . . . . . . . . . Max Security . | . . . . . . . . . . . . . . . . . . . . . Squads Dispatched 53 | . 3 1 . 1 9 12 . 3 . . . . 4 . 5 4 . 3 . 8 Investigation 21 | . 2 1 . 1 4 5 . . . . . . 1 . 1 1 . 2 . 3 Extermination 11 | . . . . . . 5 . 2 . . . . 1 . 1 1 . . . 1 Reinforcement 17 | . 1 . . . 1 2 . 1 . . . . 2 . 3 2 . 1 . 4 Assault . | . . . . . . . . . . . . . . . . . . . . . Garrison 4 | . . . . . 4 . . . . . . . . . . . . . . . Intercept . | . . . . . . . . . . . . . . . . . . . . . Searches Triggered . | . . . . . . . . . . . . . . . . . . . . . Construction Impeded 3 | . . . . . . . . . . . . . . . 1 . . . . 2 Haulers Reinforced 3 | . . . . . . . . 1 . . . . . . . . . . . 2 Active Scanning Responses . | . . . . . . . . . . . . . . . . . . . . . Cargo Convoy Interrupts 1 | . . . . . . . . . . . . . . . . . . . . 1 Stealth | -11 -10 -10 -10 -9 -8 -7 -7 -7 -7 -7 -7 -6 -6 -6 -6 -5 -5 -5 -5 -5 --------- Run | Scr Mat Min Exi Min Mat Fac Was Fac Low Low Zio Pro Fac Was Fac Fac Was Fac Gar Fac Distress Signals 16 | . 1 . . . 7 3 . . . . . . 1 . . 1 . 1 . 2 Communications Jammed . | . . . . . . . . . . . . . . . . . . . . . Distress Signals . | . . . . . . . . . . . . . . . . . . . . . Times Spotted 279 | . 26 4 . 9 57 25 6 11 6 3 . 4 33 . 9 15 2 13 20 36 Peak Tracking Total 11 | . 4 2 . 4 6 5 3 3 5 3 . 3 5 . 2 6 1 6 5 11 Tactical Retreats 25 | . 1 . . 1 1 3 1 . 1 . . . 4 . . 3 1 3 4 2 Traps | -11 -10 -10 -10 -9 -8 -7 -7 -7 -7 -7 -7 -6 -6 -6 -6 -5 -5 -5 -5 -5 ------- Run | Scr Mat Min Exi Min Mat Fac Was Fac Low Low Zio Pro Fac Was Fac Fac Was Fac Gar Fac Traps Triggered 11 | . 1 . . . . 4 . . . . . . 1 . 1 1 . 1 1 1 Indirectly . | . . . . . . . . . . . . . . . . . . . . . Trap Hack Attempts . | . . . . . . . . . . . . . . . . . . . . . Triggered . | . . . . . . . . . . . . . . . . . . . . . Disarmed . | . . . . . . . . . . . . . . . . . . . . . Reprogrammed . | . . . . . . . . . . . . . . . . . . . . . Reused 1 | . . . . . . . . . . . . . . . . 1 . . . . Traps Extracted . | . . . . . . . . . . . . . . . . . . . . . Installed 1 | . . . . . . . . . . . . . . . . 1 . . . . Triggered 3 | . . . . . . . . . . . . 1 . . 1 1 . . . . Exploded 3 | . . . . 3 . . . . . . . . . . . . . . . . Machines | -11 -10 -10 -10 -9 -8 -7 -7 -7 -7 -7 -7 -6 -6 -6 -6 -5 -5 -5 -5 -5 ---------- Run | Scr Mat Min Exi Min Mat Fac Was Fac Low Low Zio Pro Fac Was Fac Fac Was Fac Gar Fac Machines Disabled 14 | . . . . . 2 . . . . 1 . . . . . 4 . . . 7 Max in Single Turn 2 | . . . . . 1 . . . . 1 . . . . . . . . . 2 Garrison Relay 1 | . . . . . . . . . . . . . . . . . . . 1 . Machines Sabotaged . | . . . . . . . . . . . . . . . . . . . . . Garrisons Compromised 1 | . . . . . . . . . . . . . 1 . . . . . . . Overloaded Fab Kills . | . . . . . . . . . . . . . . . . . . . . . Hacking | -11 -10 -10 -10 -9 -8 -7 -7 -7 -7 -7 -7 -6 -6 -6 -6 -5 -5 -5 -5 -5 --------- Run | Scr Mat Min Exi Min Mat Fac Was Fac Low Low Zio Pro Fac Was Fac Fac Was Fac Gar Fac Machines Accessed 52 | . 10 1 1 2 11 11 . 1 . 1 1 . 2 . 3 1 . 4 . 3 Terminals 24 | . 7 1 . . 8 6 . 1 . 1 . . . . . . . . . . Fabricators 6 | . . . . . . 2 . . . . . . 2 . 1 . . 1 . . Repair Stations 7 | . 1 . . . 1 1 . . . . . . . . 2 . . 1 . 1 Recycling Units 5 | . 2 . . . . . . . . . . . . . . 1 . 1 . 1 Scanalyzers 2 | . . . . . 1 1 . . . . . . . . . . . . . . Garrison Access 4 | . . . . . 1 1 . . . . . . . . . . . 1 . 1 Total Hacks 163 | . 33 5 1 2 36 38 . 2 . 2 6 . 5 . 6 2 . 15 . 10 Successful 107 | . 24 2 1 2 22 25 . . . 2 6 . 4 . 2 2 . 9 . 6 Failed 54 | . 8 2 . . 14 13 . 2 . . . . 1 . 4 . . 6 . 4 Catastrophic 7 | . . . . . 1 3 . . . . . . 1 . . . . 1 . 1 Database Lockouts 2 | . 1 1 . . . . . . . . . . . . . . . . . . Manual 130 | . 22 5 . . 20 28 . . . 1 . . 12 . 3 11 . 9 . 19 Terminals 86 | . 26 5 . . 27 24 . 2 . 2 . . . . . . . . . . Fabricators 18 | . . . . . . 7 . . . . . . 5 . 1 . . 5 . . Repair Stations 22 | . 3 . . . 4 2 . . . . . . . . 5 . . 4 . 4 Recycling Units 13 | . 4 . . . . . . . . . . . . . . 2 . 4 . 3 Scanalyzers 5 | . . . . . 2 3 . . . . . . . . . . . . . . Garrison Access 10 | . . . . . 3 2 . . . . . . . . . . . 2 . 3 Terminal Hacks 37 | . 11 2 1 2 7 6 . . . 2 6 . . . . . . . . . Record 3 | . . . 1 . . . . . . 2 . . . . . . . . . . Part Schematic 9 | . . 2 . . 1 . . . . . 6 . . . . . . . . . Robot Analysis 5 | . 3 . . . 1 1 . . . . . . . . . . . . . . Prototype ID Bank 4 | . 2 . . . 2 . . . . . . . . . . . . . . . Open Door 2 | . . . . 2 . . . . . . . . . . . . . . . . Level Access Points 2 | . 1 . . . 1 . . . . . . . . . . . . . . . Branch Access Points 3 | . 1 . . . 1 1 . . . . . . . . . . . . . . Emergency Access Points 1 | . 1 . . . . . . . . . . . . . . . . . . . Terminal Index 3 | . 1 . . . 1 1 . . . . . . . . . . . . . . Unreport Threat 1 | . . . . . . 1 . . . . . . . . . . . . . . Recall Extermination 1 | . . . . . . 1 . . . . . . . . . . . . . . Recall Reinforcements 2 | . 1 . . . . 1 . . . . . . . . . . . . . . Hauler Manifests 1 | . 1 . . . . . . . . . . . . . . . . . . . Fabricator Hacks 7 | . . . . . . 3 . . . . . . 2 . . . . 2 . . Load Schematic 3 | . . . . . . 1 . . . . . . 1 . . . . 1 . . Build 4 | . . . . . . 2 . . . . . . 1 . . . . 1 . . Repair Station Hacks 13 | . 3 . . . 4 2 . . . . . . . . 1 . . 1 . 2 Scan Component 8 | . 2 . . . 2 1 . . . . . . . . 1 . . 1 . 1 Repair 5 | . 1 . . . 2 1 . . . . . . . . . . . . . 1 Recycling Unit Hacks 5 | . 2 . . . . . . . . . . . . . . 1 . 1 . 1 Retrieve Components 5 | . 2 . . . . . . . . . . . . . . 1 . 1 . 1 Scanalyzer 4 | . . . . . 2 2 . . . . . . . . . . . . . . Insert Component 2 | . . . . . 1 1 . . . . . . . . . . . . . . Analyze 2 | . . . . . 1 1 . . . . . . . . . . . . . . Garrison Access Hacks 1 | . . . . . . . . . . . . . . . . . . 1 . . Unlock Access 1 | . . . . . . . . . . . . . . . . . . 1 . . Unauthorized Hacks 40 | . 8 . . . 9 12 . . . . . . 2 . 1 1 . 4 . 3 Terminals 21 | . 6 . . . 7 8 . . . . . . . . . . . . . . Track 1 | . . . . . . 1 . . . . . . . . . . . . . . Assimilate 3 | . 1 . . . 1 1 . . . . . . . . . . . . . . Botnet 13 | . 3 . . . 5 5 . . . . . . . . . . . . . . Disrupt 1 | . 1 . . . . . . . . . . . . . . . . . . . Operators 3 | . 1 . . . 1 1 . . . . . . . . . . . . . . Fabricators 5 | . . . . . . 2 . . . . . . 2 . . . . 1 . . Fabnet 5 | . . . . . . 2 . . . . . . 2 . . . . 1 . . Repair Stations 1 | . . . . . . . . . . . . . . . 1 . . . . . Mechanics 1 | . . . . . . . . . . . . . . . 1 . . . . . Recycling Units 7 | . 2 . . . . . . . . . . . . . . 1 . 3 . 1 Reject 1 | . . . . . . . . . . . . . . . . . . 1 . . Recyclers 3 | . . . . . . . . . . . . . . . . 1 . 1 . 1 Mask 1 | . . . . . . . . . . . . . . . . . . 1 . . Tunnel 2 | . 2 . . . . . . . . . . . . . . . . . . . Scanalyzers . | . . . . . . . . . . . . . . . . . . . . . Garrison Access 6 | . . . . . 2 2 . . . . . . . . . . . . . 2 Reprogram 3 | . . . . . 1 1 . . . . . . . . . . . . . 1 Watchers 3 | . . . . . 1 1 . . . . . . . . . . . . . 1 Data Cores Recovered . | . . . . . . . . . . . . . . . . . . . . . Used . | . . . . . . . . . . . . . . . . . . . . . Hacking Detections 36 | . 7 1 . . 10 8 . 1 . 1 . . 1 . 3 . . 2 . 2 Full Trace Events 13 | . 2 1 . . 4 4 . . . . . . 1 . . . . 1 . . Feedback Events . | . . . . . . . . . . . . . . . . . . . . . Feedback Blocked . | . . . . . . . . . . . . . . . . . . . . . Robot Schematics Acquired 3 | . . . . . . . . . . . 3 . . . . . . . . . Robots Built . | . . . . . . . . . . . . . . . . . . . . . Authchips . | . . . . . . . . . . . . . . . . . . . . . Time . | . . . . . . . . . . . . . . . . . . . . . Total Robot Build Rating . | . . . . . . . . . . . . . . . . . . . . . Part Schematics Acquired 36 | . . 2 . . 2 1 . . . . 22 . . . . . . . . 9 Parts Built 4 | . . . . . . 3 . . . . . . 1 . . . . . . . Authchips . | . . . . . . . . . . . . . . . . . . . . . Time 305 | . . . . . . 126 . . . . . . 73 . . . . 106 . . Total Part Build Rating 18 | . . . . . . 15 . . . . . . 3 . . . . . . . Parts Repaired 5 | . 1 . . . 2 1 . . . . . . . . . . . . . 1 Time 215 | . 26 . . . 102 44 . . . . . . . . . . . . . 43 Parts Recycled . | . . . . . . . . . . . . . . . . . . . . . Recycled Matter . | . . . . . . . . . . . . . . . . . . . . . Retrieved Matter . | . . . . . . . . . . . . . . . . . . . . . Retrieved Components 20 | . 11 . . . . . . . . . . . . . . 4 . . . 5 Parts Scanalyzed 2 | . . . . . 1 1 . . . . . . . . . . . . . . Part Schematics Acquired 2 | . . . . . 1 1 . . . . . . . . . . . . . . Parts Damaged . | . . . . . . . . . . . . . . . . . . . . . Bothacking | -11 -10 -10 -10 -9 -8 -7 -7 -7 -7 -7 -7 -6 -6 -6 -6 -5 -5 -5 -5 -5 ------------ Run | Scr Mat Min Exi Min Mat Fac Was Fac Low Low Zio Pro Fac Was Fac Fac Was Fac Gar Fac Used RIF Installer . | . . . . . . . . . . . . . . . . . . . . . Robots Hacked 11 | . . . 4 . . . . . . . . 1 2 . 2 1 . . . 1 Non-combat 3 | . . . 3 . . . . . . . . . . . . . . . . . Combat 8 | . . . 1 . . . . . . . . 1 2 . 2 1 . . . 1 Robot Hacks Applied 4 | . . . 4 . . . . . . . . . . . . . . . . . parse_system 4 | . . . 4 . . . . . . . . . . . . . . . . . Relay Couplers Released 9 | . . . . . . . . . . . . . . . . . . 4 5 . Machine Destruction 5 | . . . . . . . . . . . . . . . . . . . 5 . Programmers 4 | . . . . . . . . . . . . . . . . . . 4 . . Fabnet Peak Effective % 8 | . . . . . . . . . . . . 6 6 6 6 8 8 8 8 8 Autooverrided 7 | . . . . . . . . . . . . 1 2 . 2 1 . . . 1 Robots Rewired . | . . . . . . . . . . . . . . . . . . . . . Allies Hacked . | . . . . . . . . . . . . . . . . . . . . . Hacks Repelled . | . . . . . . . . . . . . . . . . . . . . . Allies | -11 -10 -10 -10 -9 -8 -7 -7 -7 -7 -7 -7 -6 -6 -6 -6 -5 -5 -5 -5 -5 -------- Run | Scr Mat Min Exi Min Mat Fac Was Fac Low Low Zio Pro Fac Was Fac Fac Was Fac Gar Fac Total Allies 78 | . 1 3 . 2 2 3 18 . . . 4 1 21 1 2 5 . . . 15 Largest Group 18 | . 1 4 3 3 2 2 18 11 . . 4 5 10 1 2 2 . . . 6 Highest-Rated Group 444 | . 10 50 34 50 50 32 444 254 . . 154 191 266 40 130 170 . . . 415 Highest-Rated Ally 96 | . 10 16 16 31 31 16 35 35 . . 40 40 40 40 90 85 . . . 96 Zionite Dispatches 8 | . . . . . . . . . . . . . 2 . . 3 . . . 3 Heavy 2 | . . . . . . . . . . . . . . . . 1 . . . 1 Fire 3 | . . . . . . . . . . . . . 2 . . . . . . 1 Hacker 1 | . . . . . . . . . . . . . . . . . . . . 1 Trap Resupply 1 | . . . . . . . . . . . . . . . . 1 . . . . Hover Resupply 1 | . . . . . . . . . . . . . . . . 1 . . . . Total Orders 12 | . . . . 2 . 5 . . . . . . . . . 5 . . . . STAY 3 | . . . . 1 . 1 . . . . . . . . . 1 . . . . FOLLOW 3 | . . . . 1 . 2 . . . . . . . . . . . . . . DROP 2 | . . . . . . . . . . . . . . . . 2 . . . . EXPLORE 1 | . . . . . . . . . . . . . . . . 1 . . . . RETURN 3 | . . . . . . 2 . . . . . . . . . 1 . . . . Ally Attacks 240 | . . 16 . 7 21 17 . 16 . . . 21 50 . 13 7 . . . 72 Total Damage 6817 | . . 175 . 46 360 82 . 447 . . . 718 971 . 267 1049 . . . 2702 Kills 65 | . . 3 . 2 4 . . 4 . . . 6 15 . 3 2 . . . 26 Allies Corrupted 6 | . . . . . . . 3 1 . . . . . . . 1 . . . 1 Allies Melted . | . . . . . . . . . . . . . . . . . . . . . Intel | -11 -10 -10 -10 -9 -8 -7 -7 -7 -7 -7 -7 -6 -6 -6 -6 -5 -5 -5 -5 -5 ------- Run | Scr Mat Min Exi Min Mat Fac Was Fac Low Low Zio Pro Fac Was Fac Fac Was Fac Gar Fac Robot Analysis Total 5 | . 3 . . . 1 1 . . . . . . . . . . . . . . Derelict Logs Recovered 8 | . . 2 . 3 . . . . . . 1 2 . . . . . . . . Drone Launches 8 | . . . . . . 6 . . . . . . . . . 2 . . . . Drone Recoveries 7 | . . . . . . 5 . . . . . . . . . 2 . . . . Zionite Intel Received 2 | . . . . . . . . . . . . . 1 . . . . . . 1 Prototype Schematics 1 | . . . . . . . . . . . . . . . . . . . . 1 Trap Installations 1 | . . . . . . . . . . . . . 1 . . . . . . . Exploration | -11 -10 -10 -10 -9 -8 -7 -7 -7 -7 -7 -7 -6 -6 -6 -6 -5 -5 -5 -5 -5 ------------- Run | Scr Mat Min Exi Min Mat Fac Was Fac Low Low Zio Pro Fac Was Fac Fac Was Fac Gar Fac Turns Passed 20035 | 125 883 713 367 776 2854 3226 843 667 874 838 1059 650 1325 524 680 653 310 682 1107 879 Spaces Moved 13590 | 66 612 591 319 588 1471 1784 772 384 687 587 877 510 865 385 357 683 311 741 425 575 Core 426 | 1 . . . . . . 322 . . . . . . . 6 51 . 2 44 . Treads 330 | . . . . . 3 . . . . . . . . . 59 . . . 114 154 Legs . | . . . . . . . . . . . . . . . . . . . . . Wheels 10464 | 65 612 591 319 588 1468 1784 450 384 687 587 877 510 865 385 292 . . . . . Hover 2370 | . . . . . . . . . . . . . . . . 632 311 739 267 421 Flight . | . . . . . . . . . . . . . . . . . . . . . Fastest Speed 38 | 50 90 105 110 110 110 140 50 105 100 115 100 115 105 105 105 50 55 55 45 38 Average Speed 116 | 88 110 107 110 110 141 144 85 121 116 125 112 115 110 112 144 70 86 58 192 114 Slowest Speed 900 | 90 135 135 110 110 320 155 200 135 120 135 115 115 130 120 250 250 117 250 900 171 Overloaded Moves . | . . . . . . . . . . . . . . . . . . . . . Propulsion Burnouts . | . . . . . . . . . . . . . . . . . . . . . Robots Hopped . | . . . . . . . . . . . . . . . . . . . . . Cave-ins Triggered . | . . . . . . . . . . . . . . . . . . . . . Exploration Rate (%) 59 | 4 96 99 63 97 86 34 96 12 78 79 89 67 23 97 9 22 94 15 58 24 Regions Visited 20 Branch Regions 7 Pre-discovered Areas 9 | . 2 2 1 3 . . . . . . 1 . . . . . . . . . Known Exits Taken 9 | . 1 . . . 1 . . 1 1 1 1 1 . . 1 . . 1 . . Unknown Exits Taken 4 | 1 . 1 1 1 . . . . . . . . . . . . . . . . Scrap Searched 10 | . . 1 . 3 . . . . 1 3 1 1 . . . . . . . . Spaces Dug 113 | . . . . . . 27 . . 7 3 1 5 17 . 10 7 . 20 16 . Terrain Destroyed 513 | . 8 . . . . 27 166 . 36 33 1 5 17 . 10 7 . 26 114 63 Melee 99 | . . . . . . 25 . . 7 3 1 5 17 . 10 7 . 17 7 . Projectile 17 | . . . . . . 2 . . . . . . . . . . . 3 11 1 AOE 397 | . 8 . . . . . 166 . 29 30 . . . . . . . 6 96 62 Terrain Rammed . | . . . . . . . . . . . . . . . . . . . . . Walls Destroyed . | . . . . . . . . . . . . . . . . . . . . . Machines Disabled . | . . . . . . . . . . . . . . . . . . . . . Actions | -11 -10 -10 -10 -9 -8 -7 -7 -7 -7 -7 -7 -6 -6 -6 -6 -5 -5 -5 -5 -5 --------- Run | Scr Mat Min Exi Min Mat Fac Was Fac Low Low Zio Pro Fac Was Fac Fac Was Fac Gar Fac Total 16386 | 96 726 640 332 701 1922 2210 895 521 724 671 949 552 1086 436 459 809 333 942 602 780 Wait 1100 | . 37 13 . 70 150 218 9 62 4 52 47 15 69 6 42 43 . 124 35 104 Move 13574 | 65 611 590 318 587 1470 1784 771 383 686 586 876 509 865 384 356 683 310 741 424 575 Hop . | . . . . . . . . . . . . . . . . . . . . . Pick Up 190 | 8 16 7 3 10 25 17 25 16 . 5 4 3 13 1 1 6 4 5 8 13 Fast Attach 148 | 7 . 1 . 4 26 3 13 5 2 4 5 3 13 8 4 12 2 13 6 17 Attach 100 | . 1 3 . . 6 12 15 6 . 1 2 . 6 2 11 12 2 . 13 8 Detach 82 | . . . . . 9 5 4 6 . . 3 1 5 4 5 15 . 3 7 15 Swap 175 | . 9 1 4 4 27 42 11 8 7 2 . 5 19 2 1 3 . 7 14 9 Drop 205 | . 5 7 3 15 43 16 5 4 3 10 9 5 20 9 3 5 3 14 5 21 Fire 476 | 16 47 17 . 11 166 55 40 31 6 6 . . 3 . 6 . . 5 50 17 Melee 322 | . . . 4 . . 58 2 . 16 5 3 11 73 20 30 29 12 30 29 . Ram 1 | . . 1 . . . . . . . . . . . . . . . . . . Kick . | . . . . . . . . . . . . . . . . . . . . . Crush 1 | . . . . . . . . . . . . . . . . . . . . 1 Escape Stasis 11 | . . . . . . . . . . . . . . . . . . . 11 . Rewire . | . . . . . . . . . . . . . . . . . . . . . Trap 1 | . . . . . . . . . . . . . . . . 1 . . . . Miscellaneous . | . . . . . . . . . . . . . . . . . . . . . Route ------- -11/Scrapyard -10/Materials (discovered 5 exits: *Mat x3 / *Min x2) -10/Mines (discovered 3 exits: *Mat x2 / *Exi) -10/Exiles -9/Mines (discovered 2 exits: *Mat x2) -8/Materials (discovered 3 exits: *Fac x3) -7/Factory (discovered 3 exits: *Fac / *Low x2) -7/Waste -7/Factory -7/Lower Caves -7/Lower Caves (discovered 2 exits: *Fac / *Zio) -7/Zion (discovered 2 exits: Dee / *Pro) -6/Proximity Caves -6/Factory (discovered 2 exits: *Fac / *Low) -6/Waste -6/Factory -5/Factory -5/Waste -5/Factory (discovered 2 exits: [*Fac] / Gar) -5/Garrison (discovered 2 exits: *Fac x2) -5/Factory History --------- Turn | Location | Event 10 | -11/Scrapyard | Discovered new exit (range 15) 126 | -11/Scrapyard | Entered Materials 126 | -10/Materials | Discovered new exit (range 14) 305 | -10/Materials | Build established: Mutant 428 | -10/Materials | Identified exit to Mines 460 | -10/Materials | Discovered new exit (range 16) 477 | -10/Materials | Identified exit to Materials 837 | -10/Materials | Central database locked down 979 | -10/Materials | Repaired Assault Rifle 1009 | -10/Materials | Entered Mines 1009 | -10/Mines | Accompanied by 1 ally 1010 | -10/Mines | Assembled infested the area 1011 | -10/Mines | Assisted by bots powering up and referring to "LRC-V3" 1199 | -10/Mines | Learned location of Zion (-7) 1225 | -10/Mines | Received a Rocket Launcher from a helpful Derelict 1300 | -10/Mines | Build established: Commander-Mutant 1329 | -10/Mines | Discovered exit to Materials (range 8) 1347 | -10/Mines | Central database locked down 1415 | -10/Mines | Discovered exit to Materials (range 10) 1695 | -10/Mines | Build established: Scavenger-Mutant 1713 | -10/Mines | Discovered new exit (range 5) 1722 | -10/Mines | Entered Exiles 1722 | -10/Exiles | Accompanied by 3 allies 1738 | -10/Exiles | Discovered new exit (range 15) 1753 | -10/Exiles | Met 8R-AWN 1776 | -10/Exiles | Met EX-HEX 1840 | -10/Exiles | Met EX-DEC 1891 | -10/Exiles | Met EX-BIN 2089 | -10/Exiles | Entered Mines 2089 | -9/Mines | Accompanied by 3 allies 2095 | -9/Mines | Found the Drone Emporium 2100 | -9/Mines | Found Prototype Device 2100 | -9/Mines | Identified Thief Drone Bay 2133 | -9/Mines | Learned location of Storage (-9) 2224 | -9/Mines | Met a Derelict shopkeep closing up shop 2788 | -9/Mines | Discovered new exit (range 11) 2817 | -9/Mines | Discovered new exit (range 10) 2865 | -9/Mines | Entered Materials 2865 | -8/Materials | Accompanied by 2 allies 2865 | -8/Materials | Evolved 4 slots: Utility x4 2870 | -8/Materials | Led the pair of lost Derelicts to an unsafe place 3302 | -8/Materials | Discovered new exit (range 16) 3463 | -8/Materials | Garrison activated, responded to threat 3569 | -8/Materials | Garrison activated, responded to threat 3663 | -8/Materials | Lost 3 parts (2n1u) 3718 | -8/Materials | Garrison activated, responded to threat 4101 | -8/Materials | Discovered new exit (range 18) 4242 | -8/Materials | Garrison activated, responded to threat 4244 | -8/Materials | Build established: Mutant 4415 | -8/Materials | Repaired Imp. Assault Rifle 4468 | -8/Materials | Repaired Imp. Assault Rifle 4533 | -8/Materials | Core integrity fell below 50% 4597 | -8/Materials | Destroyed 8 combat bots 5095 | -8/Materials | Identified exit to Factory 5495 | -8/Materials | Build established: Scavenger-Mutant 5719 | -8/Materials | Entered Factory 5719 | -7/Factory | Evolved 2 slots: Utility x2 5765 | -7/Factory | Discovered new exit (range 7) 5773 | -7/Factory | Identified exit to Lower Caves 6100 | -7/Factory | Fabricated System Shield? 6203 | -7/Factory | Fabricated Variable Charge Gun? 6530 | -7/Factory | Build established: Hacker-Assassin 6815 | -7/Factory | Discovered new exit (range 9) 6827 | -7/Factory | Identified exit to Factory 7974 | -7/Factory | Build established: Hacker-Skirmisher 8370 | -7/Factory | Build established: Hacker-Assassin 8873 | -7/Factory | Repaired Arm. Huge Wheel 8945 | -7/Factory | Sucked down chute 8945 | -7/Factory | Entered Waste 8973 | -7/Waste | Spotted C-40 Crusher 8991 | -7/Waste | Crushed by Compactor (0 parts destroyed, 2 dropped) 8994 | -7/Waste | Crushed by Compactor (0 parts destroyed, 1 dropped) 8997 | -7/Waste | Crushed by Compactor (1 part destroyed) 8998 | -7/Waste | Destroyed C-40 Crusher 9075 | -7/Waste | Spotted C-40 Crusher 9077 | -7/Waste | Spotted C-40 Crusher 9094 | -7/Waste | Destroyed C-40 Crusher 9105 | -7/Waste | Spotted C-40 Crusher 9129 | -7/Waste | Crushed by Compactor (1 part destroyed, 2 dropped) 9132 | -7/Waste | Crushed by Compactor (0 parts destroyed, 1 dropped) 9135 | -7/Waste | Crushed by Compactor (1 part destroyed, 1 dropped) 9141 | -7/Waste | Crushed by Compactor (1 part destroyed) 9144 | -7/Waste | Crushed by Compactor (1 part destroyed, 2 dropped) 9145 | -7/Waste | Core integrity fell below 50% 9147 | -7/Waste | Crushed by Compactor (1 part destroyed, 1 dropped) 9176 | -7/Waste | Spotted C-40 Crusher 9178 | -7/Waste | Lost 7 parts (1p1n3u2w) 9202 | -7/Waste | Crushed by Compactor (1 part destroyed, 2 dropped) 9213 | -7/Waste | Destroyed C-40 Crusher 9220 | -7/Waste | Spotted C-40 Crusher 9254 | -7/Waste | Destroyed C-40 Crusher 9287 | -7/Waste | Discovered new exit (range 13) 9302 | -7/Waste | Destroyed C-40 Crusher 9327 | -7/Waste | Destroyed C-40 Crusher 9423 | -7/Waste | Build established: Mutant 9453 | -7/Waste | Warlord forces began an assault 9571 | -7/Waste | Identified exit to Factory 9784 | -7/Waste | Found Broken Imp. Powered Armor 9788 | -7/Waste | Entered Factory 9788 | -7/Factory | Accompanied by 11 allies 9853 | -7/Factory | System corruption reached 10% 10114 | -7/Factory | Build established: Scavenger-Mutant 10421 | -7/Factory | Discovered exit to Lower Caves (range 13) 10455 | -7/Factory | Entered Lower Caves 10504 | -7/Lower Caves | Attracted the attention of an 0b10 checkpoint 10580 | -7/Lower Caves | Build established: Mutant 10939 | -7/Lower Caves | Encountered a Warlord checkpoint 10941 | -7/Lower Caves | Spotted B-75 Beast 11056 | -7/Lower Caves | Discovered new exit (range 4) 11058 | -7/Lower Caves | Identified exit to Lower Caves 11329 | -7/Lower Caves | Entered another Lower Caves area 11480 | -7/Lower Caves | Discovered exit to Factory (range 16) 11486 | -7/Lower Caves | Encountered a Warlord checkpoint 11860 | -7/Lower Caves | Discovered new exit (range 9) 11886 | -7/Lower Caves | Acquired the password to a Derelict Tinkerer's latest research 11894 | -7/Lower Caves | Found Prototype Special Weapon 11894 | -7/Lower Caves | Identified Molecular Deconstructor 12166 | -7/Lower Caves | Identified exit to Zion 12167 | -7/Lower Caves | Entered Zion 12202 | -7/Zion | Discovered new exit (range 15) 12218 | -7/Zion | Identified exit to Proximity Caves 12316 | -7/Zion | System corruption cleaned by Quarantine Array 12394 | -7/Zion | Found Prototype Special Weapon 12394 | -7/Zion | Identified RU-N14's Throwing Claymores 12513 | -7/Zion | Received a visual enhancement algorithm 12639 | -7/Zion | Identified exit to Deep Caves 12959 | -7/Zion | Imprinted 12961 | -7/Zion | Declared Zion's savior 13146 | -7/Zion | Given A8's code to call for help 13226 | -7/Zion | Entered Proximity Caves 13226 | -6/Proximity Caves | Accompanied by 4 allies 13876 | -6/Proximity Caves | Entered Factory 13876 | -6/Factory | Accompanied by 2 allies 13876 | -6/Factory | Evolved 2 slots: Utility x2 13877 | -6/Factory | Identified exit to Lower Caves 14019 | -6/Factory | Fabricated System Shield? 14166 | -6/Factory | Retrieved Zion intel report: Trap Installations 14167 | -6/Factory | Zion Fire squad teleported in 14188 | -6/Factory | Discovered new exit (range 6) 14217 | -6/Factory | Zion Fire squad teleported in 14234 | -6/Factory | Local machine network offline 14256 | -6/Factory | Identified exit to Factory 14380 | -6/Factory | Build established: Derelict-Mutant 14750 | -6/Factory | Build established: Scavenger-Mutant 15201 | -6/Factory | Sucked down chute 15201 | -6/Factory | Entered Waste 15201 | -6/Waste | The area was eerily silent 15201 | -6/Waste | Met up with 1 ally sucked down the chute earlier 15286 | -6/Waste | Found Prototype Slashing Weapon 15286 | -6/Waste | Identified Vibroblade 15658 | -6/Waste | Discovered new exit (range 16) 15718 | -6/Waste | Identified exit to Factory 15725 | -6/Waste | Entered Factory 15725 | -6/Factory | Accompanied by 1 ally 16128 | -6/Factory | Lost 4 parts (1p1n2u) 16369 | -6/Factory | Discovered exit to Factory (range 6) 16370 | -6/Factory | Core integrity fell below 50% 16405 | -6/Factory | Core integrity fell below 20% 16405 | -6/Factory | Entered another Factory area 16405 | -5/Factory | Evolved 2 slots: Propulsion x2 16435 | -5/Factory | Lost 5 parts (1p1n1u2w) 16538 | -5/Factory | Zion Hover Resupply teleported in 16580 | -5/Factory | Build established: Hacker-Mutant 16725 | -5/Factory | Zion Heavy squad teleported in 16956 | -5/Factory | Zion Trap Resupply teleported in 17058 | -5/Factory | Sucked down chute 17058 | -5/Factory | Entered Waste 17058 | -5/Waste | The area was eerily silent 17080 | -5/Waste | A Compactor rumbled back to life 17080 | -5/Waste | Spotted C-40 Crusher 17138 | -5/Waste | Discovered new exit (range 15) 17367 | -5/Waste | Identified exit to Factory 17368 | -5/Waste | Entered Factory 17416 | -5/Factory | Found Prototype Launcher 17416 | -5/Factory | Identified Mni. Smartbomb Launcher 17997 | -5/Factory | Discovered new exit (range 7) 18050 | -5/Factory | Identified exit to Garrison 18050 | -5/Factory | Entered Garrison 18160 | -5/Garrison | Lost 4 parts (2n2u) 18160 | -5/Garrison | Triggered checkpoint 18253 | -5/Garrison | Discovered new exit (range 15) 18259 | -5/Garrison | Identified exit to Factory 18394 | -5/Garrison | Triggered checkpoint 18400 | -5/Garrison | Destroyed B-75 Beast 18470 | -5/Garrison | Triggered checkpoint 18470 | -5/Garrison | Core integrity fell below 50% 18499 | -5/Garrison | Garrison Relay disabled 18536 | -5/Garrison | Lost 9 parts (5n1u3w) 18902 | -5/Garrison | Core integrity fell below 20% 18942 | -5/Garrison | Lost 3 parts (1p2w) 19107 | -5/Garrison | Discovered exit to Factory (range 12) 19131 | -5/Garrison | Attempted to install RIF, but system incompatible 19134 | -5/Garrison | Attempted to install RIF, but system incompatible 19138 | -5/Garrison | Attempted to install RIF, but system incompatible 19141 | -5/Garrison | Attempted to install RIF, but system incompatible 19144 | -5/Garrison | Attempted to install RIF, but system incompatible 19157 | -5/Garrison | Entered Factory 19315 | -5/Factory | Build established: Scavenger-Mutant 19447 | -5/Factory | Zion Hacker squad teleported in 19588 | -5/Factory | Repaired Broken Imp. Linear Gravjet 19670 | -5/Factory | Retrieved Zion intel report: Prototype Schematics 19674 | -5/Factory | Enhanced Grunt warped into view, answering call for help 19677 | -5/Factory | Enhanced Grunt warped into view, answering call for help 19678 | -5/Factory | Zion Heavy squad teleported in 19742 | -5/Factory | Build established: Hacker-Mutant 19776 | -5/Factory | Zion Fire squad teleported in 19850 | -5/Factory | Cargo convoy interrupted 19915 | -5/Factory | Destroyed 8 combat bots 19927 | -5/Factory | Found Prototype Device 19927 | -5/Factory | Identified Adv. Kinecellerator 20036 | -5/Factory | Destroyed by Y-64 Sentinel with Wave Gun Last Messages --------------- 19952_ Dropped Hrd. Medium Armor Plating. 19952_ U-05 Engineer builds a Door. 19953_ U-05 Engineer builds a Wall. 19954_ Critical hit (Burn: +37). 19954_ Acquired Exp. Gyrokinetic Inverter. 19956_ Critical hit (Burn: +37). 19959_ System corrupted: Exp. Gyrokinetic Inverter rejected. 19959_ Acquired Exp. Gyrokinetic Inverter. 19962_ K-01 Serf cleans the DSF Access. 19966_ Acquired 7 matter. 19967_ R-10 Processor collects Hrd. Medium Armor Plating. 19970_ Destroyed Lgt. Ion Engine. 19973_ Acquired 5 matter. 19988_ Dropped Mic. Fission Core. 19991_ ALERT: Rogue bot located, Programmers report to Factory Zone 6P. 20022_ Dropped Adv. Matter Compressor. 20023_ Extracted 214 matter. 20023_ Acquired Adv. Matter Compressor. 20025_ System corrupted: Energy discharge (-112). 20032_ Slug penetrates Wall. Map ----- +----------------------------------------------------+ | ?????????????????????????????????????????????????? | | ?????????????????????????????????????????????????? | | ?????????????????????????????????????????????????? | | ?????????????????????????????????????????????????? | | ???????????????????????? ?????????????????????? | | ???????????????????????? ???????????????????? | | ???????????????????????? t #?????????????????? | | ???????????????????????? ##????????????????? | | ???????????????????????# R ????????????????? | | ???????????????????????# ?????????????????? | | ???????????????????????# ?????????????????? | | ???????????????????????# p##????????????????? | | ??????????????????????? = #????????????????? | | ???????????????????????? #????????????????? | | ???????????????????????? #????????????????? | | ???????????????????????? #????????????????? | | ???????????????????????? Y #????????????????? | | ?????????????????k?????? #????????????????? | | ???????????????t???u???? #????????????????? | | ???????????????????????? #????????????????? | | ???????????????????????? ?????????????????? | | ??????????????????####### #??????????????????? | | ??????????????????# # #??????????????????? | | ??????????????????# # #??????????????????? | | ???????????k??????# + #??????????????????? | | ??????????????????# """ #@ #??????????????????? | | ??????????????????# """ # #??????????????????? | | ??????????k???????# """ # #??????????????????? | | ??????????????????# #t ?????????????????? | | ??????????????????# """ # ???????????????? | | ??????????????????# """ # ?????????????? | | ??????????????????# """ # ???????????? | | ??????????????????# # ?????????? | | ??????????????????# # ####????????? | | ??????????????????####"## #???????????? | | ?????????????????????# ## #???????????? | | ?????????????????????# ## +???????????? | | ?????????????????????# #? #???????????? | | ?????????????????????#h#? #???????????? | | ?????????????????????# #? #???????????? | | ?????????????????????#/###############???????????? | | ?????????????????????# = #?????????????? | | ?????????????????????# #?????????????? | | ?????????????????????# """ """ """ #?????????????? | | ?????????????????????# """ """ """ #?????????????? | | ?????????????????????# """ """ """ #?????????????? | | ?????????????????????# #?????????????? | | ?????????????????????# """ """ """ #?????????????? | | ?????????????????????# """ """ """ #?????????????? | | ?????????????????????# """ """ """ #?????????????? | +----------------------------------------------------+ Best States ------------- Heat Dissipation 130 Energy Generation 29 Energy Capacity 560 Matter Stores 300 Matter Capacity 300 Sight Range 22 Robot Scan Range 16 Terrain Scan Range 16 Terrain Scan Density 10 Additional Mass Support 9 Base Temperature (-) 150 Armor Coverage 850 Resistance: EX 50 Resistance: EM 15 Core Shielding 20 Propulsion Shielding 66 Utility Shielding 66 Weapon Shielding 66 Evasion (%) 57 Targeting Accuracy 8 Melee Accuracy 16 Recoil Reduction 3 Kinecelleration 50 Salvage Targeting 2 Offensive Hacking 20 Defensive Hacking 32 Item Schematics ----------------- Huge Storage Unit | -10/Mines | Hacked Hcp. Storage Unit | -10/Mines | Hacked Hacking Suite | -8/Materials | Scanalyzed System Shield | -8/Materials | Hacked Arm. Wheel | -7/Factory | Scanalyzed Hvy. Beamcaster | -7/Zion | Free Riot Gun | -7/Zion | Free Battle Cannon | -7/Zion | Free Flamer | -7/Zion | Free Enh. Flamer | -7/Zion | Free Phasing Sabre | -7/Zion | Free Arc Projector | -7/Zion | Archive Adv. Sensor Array | -7/Zion | Archive Dynamic Insulation System | -7/Zion | Archive Hpw. Shock Rifle | -7/Zion | Archive Adv. Heat Sink | -7/Zion | Archive Hvy. Battle Rifle | -7/Zion | Archive Transmission Jammer | -7/Zion | Archive Arm. Leg | -7/Zion | Archive Antigrav System | -7/Zion | Archive Imp. Medium Armor Plating | -7/Zion | Archive 0b10 Decoder Chip [Looter] | -7/Zion | Archive Mak. Armor Plating | -7/Zion | Archive Imp. Recalibrator | -7/Zion | Archive Core Analyzer | -7/Zion | Archive Hvy. Plasma Cannon | -7/Zion | Archive HERF Cannon | -7/Zion | Archive Lgt. Neutrino Core | -5/Factory | Z-intel Enh. Fission Core | -5/Factory | Z-intel Enh. Armored Leg | -5/Factory | Z-intel Cld. Plasma Rifle | -5/Factory | Z-intel Ion Burst Cannon | -5/Factory | Z-intel Imp. Energy Well | -5/Factory | Z-intel Hvy. Gatling Laser | -5/Factory | Z-intel Mni. Smartbomb Launcher | -5/Factory | Z-intel Cld. Aerolev Unit | -5/Factory | Z-intel Robot Schematics ------------------ W-25 Informer | -7/Zion | Archive A-02 Transporter | -7/Zion | Archive L-41 Fighter | -7/Zion | Archive Fabricated ------------ System Shield | x1 | -7/Factory Variable Charge Gun | x2 | -7/Factory | Preloaded System Shield | x1 | -6/Factory Alien Tech Used ----------------- None Achievements -------------- None Challenges ------------ None Game ------ Seed BombGravitonCanceller Manual? 0 Play Time 03:57:39 Cumulative 558.3 hours Start 2022.06.03 @ 08:29:55 End 2022.06.03 @ 14:22:54 Sessions 3 Manual Loads 0 Difficulty Rogue Special Mode None Game No. 450 Rogue 450 Adventurer 0 Explorer 0 Win Type - Total 5 Types 4/0/0/1/0/0/0/0/0 Lore% 71 Gallery% 84 Achievement% 66 Wizard Run 0 Options --------- ASCII 0 Keyboard 1 Movement Numpad Keybinds 0 Fullscreen 1 Font 12/Terminus Map View 83x54 Tactical HUD 1 Map Filters NONE Filters NONE Steam 1 RUN: 2021dec3-1dd4-46f0-a595-48d37f4b392d